[Event "December 19 Late 2023"]
[Site "https://www.chess.com"]
[Date "2023.12.19"]
[Round "4"]
[White "Guzman Lozano, Campo Elias"]
[Black "Fernandez Bustamante, Leancy B."]
[Result "0-1"]
[Board "162"]
[TimeControl "180+1"]
[WhiteFideId "4403746"]
[BlackFideId "3523870"]
[WhiteElo "2099"]
[BlackElo "2049"]
[WhiteTeam "COL"]
[BlackTeam "CUB"]
[WhiteClock "0:00:46"]
[BlackClock "0:00:20"]

1. Nf3 {[%clk 0:02:59]}  c5 {[%clk 0:03:00]} 2. e4 {[%clk 0:02:57]}  a6 {[%clk 0:03:00]} 3. c3 {[%clk 0:02:57]}  d5 {[%clk 0:02:59]} 4. exd5 {[%clk 0:02:55]}  Qxd5 {[%clk 0:03:00]} 5. d4 {[%clk 0:02:55]}  Bg4 {[%clk 0:03:01]} 6. Be2 {[%clk 0:02:54]}  cxd4 {[%clk 0:03:00]} 7. Qxd4 {[%clk 0:02:50]}  Qxd4 {[%clk 0:02:59]} 8. Nxd4 {[%clk 0:02:49]}  Bxe2 {[%clk 0:02:59]} 9. Kxe2 {[%clk 0:02:50]}  e5 {[%clk 0:02:56]} 10. Nc2 {[%clk 0:02:48]}  Nc6 {[%clk 0:02:56]} 11. Re1 {[%clk 0:02:46]}  Bc5 {[%clk 0:02:55]} 12. Kf1 {[%clk 0:02:46]}  Nf6 {[%clk 0:02:54]} 13. Be3 {[%clk 0:02:46]}  Bxe3 {[%clk 0:02:51]} 14. Nxe3 {[%clk 0:02:45]}  O-O {[%clk 0:02:50]} 15. Nd2 {[%clk 0:02:44]}  g6 {[%clk 0:02:49]} 16. Ndc4 {[%clk 0:02:44]}  b5 {[%clk 0:02:45]} 17. Nd2 {[%clk 0:02:38]}  Rad8 {[%clk 0:02:45]} 18. Nf3 {[%clk 0:02:38]}  e4 {[%clk 0:02:39]} 19. Ng5 {[%clk 0:02:29]}  Rd2 {[%clk 0:02:35]} 20. Re2 {[%clk 0:02:28]}  Rfd8 {[%clk 0:02:34]} 21. Rae1 {[%clk 0:02:28]}  h6 {[%clk 0:02:31]} 22. Nh3 {[%clk 0:02:27]}  Kg7 {[%clk 0:02:30]} 23. f3 {[%clk 0:02:16]}  exf3 {[%clk 0:02:27]} 24. gxf3 {[%clk 0:02:16]}  Nh5 {[%clk 0:02:23]} 25. f4 {[%clk 0:02:05]}  Na5 {[%clk 0:02:13]} 26. Rxd2 {[%clk 0:02:04]}  Rxd2 {[%clk 0:02:11]} 27. Re2 {[%clk 0:02:04]}  Rd6 {[%clk 0:02:05]} 28. f5 {[%clk 0:02:04]}  Rf6 {[%clk 0:02:04]} 29. Rf2 {[%clk 0:02:03]}  g5 {[%clk 0:02:01]} 30. Nd5 {[%clk 0:01:56]}  Rd6 {[%clk 0:02:00]} 31. Nb4 {[%clk 0:01:56]}  Nc4 {[%clk 0:01:56]} 32. b3 {[%clk 0:01:56]}  Ne3+ {[%clk 0:01:50]} 33. Ke2 {[%clk 0:01:55]}  Ng4 {[%clk 0:01:49]} 34. Rg2 {[%clk 0:01:50]}  Nhf6 {[%clk 0:01:47]} 35. Nf2 {[%clk 0:01:49]}  Nxf2 {[%clk 0:01:43]} 36. Rxf2 {[%clk 0:01:48]}  a5 {[%clk 0:01:43]} 37. Nc2 {[%clk 0:01:46]}  Rd5 {[%clk 0:01:42]} 38. Nd4 {[%clk 0:01:46]}  Re5+ {[%clk 0:01:41]} 39. Kd3 {[%clk 0:01:44]}  Nh5 {[%clk 0:01:38]} 40. Nc6 {[%clk 0:01:37]}  Re1 {[%clk 0:01:26]} 41. Nxa5 {[%clk 0:01:35]}  Nf4+ {[%clk 0:01:26]} 42. Kc2 {[%clk 0:01:34]}  Kf6 {[%clk 0:01:19]} 43. Nb7 {[%clk 0:01:34]}  Kxf5 {[%clk 0:01:18]} 44. Nd6+ {[%clk 0:01:33]}  Kg4 {[%clk 0:01:15]} 45. Nxf7 {[%clk 0:01:33]}  h5 {[%clk 0:01:13]} 46. c4 {[%clk 0:01:32]}  bxc4 {[%clk 0:01:13]} 47. bxc4 {[%clk 0:01:32]}  Ra1 {[%clk 0:01:11]} 48. Kb3 {[%clk 0:01:31]}  Rb1+ {[%clk 0:01:10]} 49. Rb2 {[%clk 0:01:30]}  Rxb2+ {[%clk 0:00:39]} 50. Kxb2 {[%clk 0:01:29]}  Ne6 {[%clk 0:00:39]} 51. a4 {[%clk 0:01:27]}  Kh3 {[%clk 0:00:39]} 52. a5 {[%clk 0:01:25]}  g4 {[%clk 0:00:39]} 53. Ne5 {[%clk 0:01:20]}  Kxh2 {[%clk 0:00:37]} 54. a6 {[%clk 0:01:19]}  g3 {[%clk 0:00:35]} 55. c5 {[%clk 0:01:09]}  Nxc5 {[%clk 0:00:30]} 56. a7 {[%clk 0:01:08]}  Na4+ {[%clk 0:00:31]} 57. Kb3 {[%clk 0:01:04]}  Nb6 {[%clk 0:00:32]} 58. Kb4 {[%clk 0:01:04]}  g2 {[%clk 0:00:29]} 59. Kb5 {[%clk 0:01:04]}  Na8 {[%clk 0:00:26]} 60. Kc6 {[%clk 0:01:04]}  Kg3 {[%clk 0:00:25]} 61. Kb7 {[%clk 0:01:02]}  g1=Q {[%clk 0:00:24]} 62. Kxa8 {[%clk 0:01:02]}  Qb6 {[%clk 0:00:20]} 63. Nd3 {[%clk 0:00:53]}  Qd8+ {[%clk 0:00:20]} 64. Kb7 {[%clk 0:00:52]}  Qxd3 {[%clk 0:00:20]} 65. a8=Q {[%clk 0:00:46]}  Qe4+ {[%clk 0:00:20]} 0-1

[Event "December 19 Late 2023"]
[Site "https://www.chess.com"]
[Date "2023.12.19"]
[Round "4"]
[White "Gerbelli Neto, Eduardo"]
[Black "Harrington, Steve"]
[Result "0-1"]
[Board "163"]
[TimeControl "180+1"]
[WhiteFideId "2103281"]
[BlackFideId "2038730"]
[WhiteElo "2178"]
[BlackElo "2155"]
[WhiteTeam "BRA"]
[BlackTeam "USA"]
[WhiteClock "0:00:00"]
[BlackClock "0:00:19"]

1. e4 {[%clk 0:02:57]}  c5 {[%clk 0:02:59]} 2. Nc3 {[%clk 0:02:57]}  d6 {[%clk 0:02:58]} 3. f4 {[%clk 0:02:58]}  g6 {[%clk 0:02:58]} 4. Nf3 {[%clk 0:02:58]}  Bg7 {[%clk 0:02:58]} 5. Bb5+ {[%clk 0:02:58]}  Nc6 {[%clk 0:02:58]} 6. O-O {[%clk 0:02:54]}  Nf6 {[%clk 0:02:56]} 7. Qe1 {[%clk 0:02:53]}  Qb6 {[%clk 0:02:50]} 8. Bxc6+ {[%clk 0:02:53]}  Qxc6 {[%clk 0:02:50]} 9. d3 {[%clk 0:02:53]}  Bg4 {[%clk 0:02:42]} 10. e5 {[%clk 0:02:41]}  Nd7 {[%clk 0:02:32]} 11. exd6 {[%clk 0:02:40]}  Qxd6 {[%clk 0:02:32]} 12. Ne4 {[%clk 0:02:38]}  Qc6 {[%clk 0:02:31]} 13. Qh4 {[%clk 0:02:32]}  Bxf3 {[%clk 0:02:27]} 14. Rxf3 {[%clk 0:02:33]}  Nf6 {[%clk 0:02:20]} 15. f5 {[%clk 0:02:26]}  Nxe4 {[%clk 0:02:15]} 16. dxe4 {[%clk 0:02:27]}  O-O-O {[%clk 0:02:07]} 17. Bg5 {[%clk 0:02:26]}  Bd4+ {[%clk 0:01:57]} 18. Kh1 {[%clk 0:02:26]}  f6 {[%clk 0:01:58]} 19. Be3 {[%clk 0:02:15]}  gxf5 {[%clk 0:01:49]} 20. exf5 {[%clk 0:02:03]}  Bxe3 {[%clk 0:01:36]} 21. Rxe3 {[%clk 0:02:02]}  Rd2 {[%clk 0:01:33]} 22. Rg3 {[%clk 0:01:54]}  Rhd8 {[%clk 0:01:29]} 23. h3 {[%clk 0:01:45]}  Rxc2 {[%clk 0:01:26]} 24. Qxh7 {[%clk 0:01:43]}  Qd6 {[%clk 0:01:05]} 25. Rg8 {[%clk 0:01:20]}  Rxb2 {[%clk 0:01:01]} 26. Rxd8+ {[%clk 0:01:16]}  Qxd8 {[%clk 0:01:02]} 27. Rc1 {[%clk 0:01:13]}  Qd5 {[%clk 0:01:01]} 28. Qg7 {[%clk 0:01:06]}  Kd7 {[%clk 0:00:58]} 29. Re1 {[%clk 0:01:04]}  Qd6 {[%clk 0:00:52]} 30. Qg8 {[%clk 0:01:01]}  Rd2 {[%clk 0:00:48]} 31. Qb3 {[%clk 0:00:54]}  Qd5 {[%clk 0:00:43]} 32. Qa4+ {[%clk 0:00:41]}  Kc7 {[%clk 0:00:33]} 33. Qg4 {[%clk 0:00:40]}  Kd7 {[%clk 0:00:31]} 34. Qa4+ {[%clk 0:00:39]}  Kd8 {[%clk 0:00:26]} 35. Qg4 {[%clk 0:00:22]}  c4 {[%clk 0:00:24]} 36. Qg7 {[%clk 0:00:10]}  Qd6 {[%clk 0:00:19]} 37. Qf8+ {[%clk 0:00:09]}  Kd7 {[%clk 0:00:19]} 38. Rb1 {[%clk 0:00:07]}  b5 {[%clk 0:00:17]} 39. a4 {[%clk 0:00:05]}  Rd1+ {[%clk 0:00:17]} 40. Rxd1 {[%clk 0:00:04]}  Qxd1+ {[%clk 0:00:18]} 41. Kh2 {[%clk 0:00:05]}  Qd6+ {[%clk 0:00:18]} 42. Kh1 {[%clk 0:00:04]}  b4 {[%clk 0:00:18]} 43. Qa8 {[%clk 0:00:03]}  Qb6 {[%clk 0:00:19]} 44. Qe4 {[%clk 0:00:02]}  c3 {[%clk 0:00:18]} 45. Qd3+ {[%clk 0:00:02]}  Qd6 {[%clk 0:00:17]} 46. Qb5+ {[%clk 0:00:02]}  Qc6 {[%clk 0:00:18]} 47. Qxb4 {[%clk 0:00:03]}  c2 {[%clk 0:00:17]} 48. Qd4+ {[%clk 0:00:03]}  Kc7 {[%clk 0:00:18]} 49. Qxa7+ {[%clk 0:00:02]}  Kd6 {[%clk 0:00:18]} 50. Qd4+ {[%clk 0:00:02]}  Kc7 {[%clk 0:00:18]} 51. Qa7+ {[%clk 0:00:03]}  Kd8 {[%clk 0:00:19]} 52. Qd4+ {[%clk 0:00:00]}  Ke8 {[%clk 0:00:19]} 0-1

[Event "December 19 Late 2023"]
[Site "https://www.chess.com"]
[Date "2023.12.19"]
[Round "4"]
[White "Hoffmann, Asa"]
[Black "Hartikainen, Jarmo"]
[Result "1-0"]
[Board "164"]
[TimeControl "180+1"]
[WhiteFideId "2001470"]
[BlackFideId "503134"]
[WhiteElo "2117"]
[BlackElo "2148"]
[WhiteTeam "USA"]
[BlackTeam "FIN"]
[WhiteClock "0:00:41"]
[BlackClock "0:00:00"]

1. d4 {[%clk 0:02:29]}  d5 {[%clk 0:02:59]} 2. Bg5 {[%clk 0:02:25]}  Nf6 {[%clk 0:02:55]} 3. Nd2 {[%clk 0:02:25]}  c5 {[%clk 0:02:54]} 4. c3 {[%clk 0:02:24]}  Nc6 {[%clk 0:02:53]} 5. e3 {[%clk 0:02:24]}  e6 {[%clk 0:02:46]} 6. f4 {[%clk 0:02:23]}  Be7 {[%clk 0:02:46]} 7. Ngf3 {[%clk 0:02:23]}  h6 {[%clk 0:02:43]} 8. Bh4 {[%clk 0:02:22]}  Ne4 {[%clk 0:02:43]} 9. Bxe7 {[%clk 0:02:20]}  Qxe7 {[%clk 0:02:43]} 10. Nxe4 {[%clk 0:02:20]}  dxe4 {[%clk 0:02:43]} 11. Ne5 {[%clk 0:02:19]}  Nxe5 {[%clk 0:02:30]} 12. fxe5 {[%clk 0:02:18]}  O-O {[%clk 0:02:13]} 13. Qg4 {[%clk 0:02:16]}  f5 {[%clk 0:02:10]} 14. Qg3 {[%clk 0:02:07]}  cxd4 {[%clk 0:02:07]} 15. exd4 {[%clk 0:02:05]}  f4 {[%clk 0:02:07]} 16. Qg6 {[%clk 0:02:01]}  Qh4+ {[%clk 0:01:42]} 17. g3 {[%clk 0:02:00]}  fxg3 {[%clk 0:01:41]} 18. Qxg3 {[%clk 0:01:59]}  Qxg3+ {[%clk 0:01:18]} 19. hxg3 {[%clk 0:01:57]}  b6 {[%clk 0:01:16]} 20. Bg2 {[%clk 0:01:55]}  Bb7 {[%clk 0:01:16]} 21. Ke2 {[%clk 0:01:51]}  Rf5 {[%clk 0:01:11]} 22. Ke3 {[%clk 0:01:49]}  Raf8 {[%clk 0:01:10]} 23. Bxe4 {[%clk 0:01:47]}  Bxe4 {[%clk 0:01:07]} 24. Kxe4 {[%clk 0:01:46]}  Rf2 {[%clk 0:01:03]} 25. b3 {[%clk 0:01:32]}  Re2+ {[%clk 0:00:58]} 26. Kd3 {[%clk 0:01:32]}  Rff2 {[%clk 0:00:58]} 27. a4 {[%clk 0:01:22]}  Rd2+ {[%clk 0:00:50]} 28. Kc4 {[%clk 0:01:21]}  Rf3 {[%clk 0:00:50]} 29. Rac1 {[%clk 0:01:11]}  Rxg3 {[%clk 0:00:47]} 30. Rhf1 {[%clk 0:01:09]}  h5 {[%clk 0:00:42]} 31. Rf4 {[%clk 0:01:05]}  Rdd3 {[%clk 0:00:14]} 32. Rc2 {[%clk 0:00:51]}  g5 {[%clk 0:00:12]} 33. Rf6 {[%clk 0:00:50]}  h4 {[%clk 0:00:10]} 34. Rxe6 {[%clk 0:00:50]}  h3 {[%clk 0:00:10]} 35. d5 {[%clk 0:00:50]}  h2 {[%clk 0:00:09]} 36. Rh6 {[%clk 0:00:45]}  Rh3 {[%clk 0:00:09]} 37. Rxh2 {[%clk 0:00:44]}  Rxc3+ {[%clk 0:00:07]} 38. Kb5 {[%clk 0:00:44]}  Rxb3+ {[%clk 0:00:08]} 39. Kc6 {[%clk 0:00:44]}  Rbc3+ {[%clk 0:00:06]} 40. Kd7 {[%clk 0:00:43]}  Rxh2 {[%clk 0:00:04]} 41. Rxh2 {[%clk 0:00:42]}  Rd3 {[%clk 0:00:02]} 42. d6 {[%clk 0:00:42]}  a6 {[%clk 0:00:00]} 43. e6 {[%clk 0:00:41]} 1-0

[Event "December 19 Late 2023"]
[Site "https://www.chess.com"]
[Date "2023.12.19"]
[Round "4"]
[White "Quirke, Jeffrey"]
[Black "Chlpik, Martin"]
[Result "1-0"]
[Board "165"]
[TimeControl "180+1"]
[WhiteFideId "2013029"]
[BlackFideId "14923351"]
[WhiteElo "2145"]
[BlackElo "2109"]
[WhiteTeam "USA"]
[BlackTeam "SVK"]
[WhiteClock "0:00:03"]
[BlackClock "0:00:00"]

1. e4 {[%clk 0:02:56]}  c5 {[%clk 0:02:29]} 2. c3 {[%clk 0:02:55]}  d6 {[%clk 0:02:29]} 3. d4 {[%clk 0:02:53]}  Nf6 {[%clk 0:02:28]} 4. Bd3 {[%clk 0:02:51]}  g6 {[%clk 0:02:26]} 5. Nf3 {[%clk 0:02:50]}  Bg7 {[%clk 0:02:25]} 6. O-O {[%clk 0:02:49]}  O-O {[%clk 0:02:22]} 7. h3 {[%clk 0:02:49]}  Nc6 {[%clk 0:02:19]} 8. Re1 {[%clk 0:02:46]}  e5 {[%clk 0:02:14]} 9. dxc5 {[%clk 0:02:42]}  dxc5 {[%clk 0:01:16]} 10. Qc2 {[%clk 0:02:20]}  Qe7 {[%clk 0:01:13]} 11. Nbd2 {[%clk 0:02:16]}  h6 {[%clk 0:00:17]} 12. a4 {[%clk 0:02:15]}  Be6 {[%clk 0:00:14]} 13. Bc4 {[%clk 0:02:15]}  Rad8 {[%clk 0:00:14]} 14. Bxe6 {[%clk 0:02:14]}  Qxe6 {[%clk 0:00:15]} 15. b3 {[%clk 0:01:43]}  Rd7 {[%clk 0:00:15]} 16. Nc4 {[%clk 0:01:37]}  Rfd8 {[%clk 0:00:15]} 17. Be3 {[%clk 0:01:17]}  b6 {[%clk 0:00:14]} 18. Nfd2 {[%clk 0:00:54]}  Rd3 {[%clk 0:00:10]} 19. f3 {[%clk 0:00:51]}  Nh5 {[%clk 0:00:10]} 20. Bf2 {[%clk 0:00:42]}  Nf4 {[%clk 0:00:10]} 21. Nf1 {[%clk 0:00:41]}  Qe7 {[%clk 0:00:08]} 22. Nfe3 {[%clk 0:00:37]}  Qg5 {[%clk 0:00:08]} 23. Kh2 {[%clk 0:00:30]}  h5 {[%clk 0:00:08]} 24. h4 {[%clk 0:00:29]}  Qf6 {[%clk 0:00:07]} 25. Nd5 {[%clk 0:00:29]}  R8xd5 {[%clk 0:00:03]} 26. exd5 {[%clk 0:00:28]}  Rxd5 {[%clk 0:00:04]} 27. Rad1 {[%clk 0:00:23]}  Ne7 {[%clk 0:00:04]} 28. Rxd5 {[%clk 0:00:23]}  Nexd5 {[%clk 0:00:05]} 29. Ne3 {[%clk 0:00:16]}  Ne7 {[%clk 0:00:03]} 30. Qe4 {[%clk 0:00:11]}  Ne6 {[%clk 0:00:03]} 31. Nc4 {[%clk 0:00:08]}  Kh7 {[%clk 0:00:03]} 32. Nxe5 {[%clk 0:00:07]}  Nf4 {[%clk 0:00:02]} 33. g3 {[%clk 0:00:06]}  Ne6 {[%clk 0:00:02]} 34. Nd7 {[%clk 0:00:06]}  Qxc3 {[%clk 0:00:01]} 35. Ne5 {[%clk 0:00:03]}  Qxb3 {[%clk 0:00:00]} 36. g4 {[%clk 0:00:03]} 1-0

[Event "December 19 Late 2023"]
[Site "https://www.chess.com"]
[Date "2023.12.19"]
[Round "4"]
[White "Botez, Alexandra"]
[Black "Sailer, Mike"]
[Result "0-1"]
[Board "166"]
[TimeControl "180+1"]
[WhiteFideId "2603365"]
[BlackFideId "2012901"]
[WhiteElo "2040"]
[BlackElo "2109"]
[WhiteTeam "CAN"]
[BlackTeam "USA"]
[WhiteClock "0:00:00"]
[BlackClock "0:00:11"]

1. d4 {[%clk 0:03:00]}  d5 {[%clk 0:02:58]} 2. Nf3 {[%clk 0:02:56]}  Nf6 {[%clk 0:02:57]} 3. g3 {[%clk 0:02:50]}  e6 {[%clk 0:02:52]} 4. Bg2 {[%clk 0:02:50]}  c5 {[%clk 0:02:53]} 5. c3 {[%clk 0:02:45]}  Nc6 {[%clk 0:02:53]} 6. O-O {[%clk 0:02:44]}  Be7 {[%clk 0:02:53]} 7. Bf4 {[%clk 0:02:37]}  O-O {[%clk 0:02:52]} 8. Nbd2 {[%clk 0:02:32]}  b5 {[%clk 0:02:41]} 9. e3 {[%clk 0:02:27]}  b4 {[%clk 0:02:30]} 10. dxc5 {[%clk 0:02:18]}  Ba6 {[%clk 0:02:18]} 11. Re1 {[%clk 0:02:18]}  Bxc5 {[%clk 0:02:18]} 12. Nb3 {[%clk 0:02:13]}  Be7 {[%clk 0:02:02]} 13. Nfd4 {[%clk 0:02:04]}  Rc8 {[%clk 0:01:45]} 14. Nxc6 {[%clk 0:01:51]}  Rxc6 {[%clk 0:01:45]} 15. Nd4 {[%clk 0:01:51]}  Rb6 {[%clk 0:01:28]} 16. Qa4 {[%clk 0:01:12]}  bxc3 {[%clk 0:01:18]} 17. bxc3 {[%clk 0:01:13]}  Nd7 {[%clk 0:01:14]} 18. Rab1 {[%clk 0:01:04]}  Nc5 {[%clk 0:00:51]} 19. Rxb6 {[%clk 0:00:59]}  Nxa4 {[%clk 0:00:47]} 20. Rxa6 {[%clk 0:00:57]}  Nxc3 {[%clk 0:00:46]} 21. Nc6 {[%clk 0:00:43]}  Qd7 {[%clk 0:00:39]} 22. Rxa7 {[%clk 0:00:22]}  Qxc6 {[%clk 0:00:39]} 23. Rxe7 {[%clk 0:00:22]}  Nxa2 {[%clk 0:00:33]} 24. Rc7 {[%clk 0:00:22]}  Qb6 {[%clk 0:00:27]} 25. Rec1 {[%clk 0:00:21]}  Nxc1 {[%clk 0:00:23]} 26. Rxc1 {[%clk 0:00:20]}  h6 {[%clk 0:00:23]} 27. h4 {[%clk 0:00:20]}  Qb7 {[%clk 0:00:21]} 28. Kh2 {[%clk 0:00:19]}  Rc8 {[%clk 0:00:21]} 29. Ra1 {[%clk 0:00:20]}  Kh7 {[%clk 0:00:19]} 30. Re1 {[%clk 0:00:16]}  Rc2 {[%clk 0:00:17]} 31. Kg1 {[%clk 0:00:14]}  Qb2 {[%clk 0:00:16]} 32. Rf1 {[%clk 0:00:15]}  Rc1 {[%clk 0:00:16]} 33. e4 {[%clk 0:00:14]}  Rxf1+ {[%clk 0:00:16]} 34. Bxf1 {[%clk 0:00:14]}  dxe4 {[%clk 0:00:15]} 35. Kg2 {[%clk 0:00:14]}  f5 {[%clk 0:00:15]} 36. Be3 {[%clk 0:00:13]}  Kg6 {[%clk 0:00:14]} 37. Bc4 {[%clk 0:00:10]}  Kf6 {[%clk 0:00:14]} 38. Bf1 {[%clk 0:00:08]}  g5 {[%clk 0:00:14]} 39. hxg5+ {[%clk 0:00:08]}  hxg5 {[%clk 0:00:15]} 40. Ba7 {[%clk 0:00:06]}  f4 {[%clk 0:00:14]} 41. Bc5 {[%clk 0:00:03]}  Kf5 {[%clk 0:00:12]} 42. Ba7 {[%clk 0:00:00]}  Qa3 {[%clk 0:00:11]} 0-1

[Event "December 19 Late 2023"]
[Site "https://www.chess.com"]
[Date "2023.12.19"]
[Round "4"]
[White "Ghosh, Chanchal Kumer"]
[Black "Golubenko, Valentina"]
[Result "0-1"]
[Board "169"]
[TimeControl "180+1"]
[WhiteFideId "10201858"]
[BlackFideId "4501993"]
[WhiteElo "2067"]
[BlackElo "2126"]
[WhiteTeam "BAN"]
[BlackTeam "CRO"]
[WhiteClock "0:00:00"]
[BlackClock "0:00:09"]

1. e4 {[%clk 0:02:42]}  g6 {[%clk 0:02:59]} 2. Nf3 {[%clk 0:02:42]}  Bg7 {[%clk 0:02:58]} 3. d4 {[%clk 0:02:42]}  d5 {[%clk 0:02:50]} 4. e5 {[%clk 0:02:37]}  c5 {[%clk 0:02:50]} 5. c3 {[%clk 0:02:37]}  Nc6 {[%clk 0:02:49]} 6. Bd3 {[%clk 0:02:31]}  Bg4 {[%clk 0:02:46]} 7. Nbd2 {[%clk 0:01:53]}  e6 {[%clk 0:02:29]} 8. h3 {[%clk 0:01:50]}  Bxf3 {[%clk 0:02:28]} 9. Nxf3 {[%clk 0:01:51]}  Nge7 {[%clk 0:02:26]} 10. O-O {[%clk 0:01:48]}  cxd4 {[%clk 0:02:19]} 11. cxd4 {[%clk 0:01:47]}  O-O {[%clk 0:02:19]} 12. Bg5 {[%clk 0:01:45]}  Qb6 {[%clk 0:02:18]} 13. Qd2 {[%clk 0:01:08]}  Rfe8 {[%clk 0:01:43]} 14. Be3 {[%clk 0:00:46]}  f6 {[%clk 0:01:26]} 15. exf6 {[%clk 0:00:43]}  Bxf6 {[%clk 0:01:26]} 16. Rfe1 {[%clk 0:00:39]}  Qb4 {[%clk 0:01:16]} 17. Qc2 {[%clk 0:00:29]}  Rac8 {[%clk 0:01:08]} 18. a3 {[%clk 0:00:28]}  Qb6 {[%clk 0:01:04]} 19. Qd2 {[%clk 0:00:28]}  Nxd4 {[%clk 0:01:00]} 20. Nxd4 {[%clk 0:00:27]}  Bxd4 {[%clk 0:01:00]} 21. Bxd4 {[%clk 0:00:23]}  Qxd4 {[%clk 0:00:59]} 22. Rxe6 {[%clk 0:00:22]}  Nf5 {[%clk 0:00:52]} 23. Rae1 {[%clk 0:00:16]}  Rf8 {[%clk 0:00:50]} 24. Qe2 {[%clk 0:00:11]}  Rc7 {[%clk 0:00:36]} 25. Bxf5 {[%clk 0:00:10]}  Rxf5 {[%clk 0:00:32]} 26. Re8+ {[%clk 0:00:10]}  Kg7 {[%clk 0:00:32]} 27. Re7+ {[%clk 0:00:10]}  Rxe7 {[%clk 0:00:31]} 28. Qxe7+ {[%clk 0:00:11]}  Rf7 {[%clk 0:00:31]} 29. Qe2 {[%clk 0:00:11]}  Qf4 {[%clk 0:00:26]} 30. Rd1 {[%clk 0:00:11]}  d4 {[%clk 0:00:22]} 31. Qd2 {[%clk 0:00:11]}  Qxd2 {[%clk 0:00:19]} 32. Rxd2 {[%clk 0:00:12]}  Rc7 {[%clk 0:00:20]} 33. Kf1 {[%clk 0:00:11]}  Rd7 {[%clk 0:00:21]} 34. Ke2 {[%clk 0:00:11]}  Rc7 {[%clk 0:00:22]} 35. Kd3 {[%clk 0:00:11]}  Rd7 {[%clk 0:00:21]} 36. Re2 {[%clk 0:00:12]}  Kf6 {[%clk 0:00:22]} 37. Re4 {[%clk 0:00:12]}  Kf5 {[%clk 0:00:21]} 38. Rxd4 {[%clk 0:00:12]}  Re7 {[%clk 0:00:21]} 39. Rd5+ {[%clk 0:00:12]}  Ke6 {[%clk 0:00:21]} 40. Rd4 {[%clk 0:00:12]}  Rf7 {[%clk 0:00:21]} 41. f3 {[%clk 0:00:11]}  Ke5 {[%clk 0:00:21]} 42. Re4+ {[%clk 0:00:11]}  Kd5 {[%clk 0:00:21]} 43. b4 {[%clk 0:00:11]}  b5 {[%clk 0:00:20]} 44. Rd4+ {[%clk 0:00:11]}  Ke5 {[%clk 0:00:21]} 45. Ke3 {[%clk 0:00:09]}  a6 {[%clk 0:00:20]} 46. Re4+ {[%clk 0:00:10]}  Kd5 {[%clk 0:00:20]} 47. g4 {[%clk 0:00:10]}  Rc7 {[%clk 0:00:19]} 48. Kf4 {[%clk 0:00:09]}  Rc3 {[%clk 0:00:19]} 49. Re5+ {[%clk 0:00:09]}  Kd4 {[%clk 0:00:18]} 50. Re4+ {[%clk 0:00:08]}  Kd5 {[%clk 0:00:19]} 51. Re3 {[%clk 0:00:08]}  Rc4+ {[%clk 0:00:18]} 52. Kg3 {[%clk 0:00:09]}  Kd4 {[%clk 0:00:18]} 53. Re4+ {[%clk 0:00:08]}  Kd3 {[%clk 0:00:19]} 54. Re6 {[%clk 0:00:08]}  Kd4 {[%clk 0:00:16]} 55. Rxa6 {[%clk 0:00:08]}  Rc3 {[%clk 0:00:16]} 56. a4 {[%clk 0:00:06]}  Kc4 {[%clk 0:00:15]} 57. axb5 {[%clk 0:00:06]}  Kxb5 {[%clk 0:00:16]} 58. Ra7 {[%clk 0:00:07]}  h5 {[%clk 0:00:15]} 59. gxh5 {[%clk 0:00:06]}  gxh5 {[%clk 0:00:16]} 60. Ra5+ {[%clk 0:00:07]}  Kxb4 {[%clk 0:00:16]} 61. Rxh5 {[%clk 0:00:08]}  Kc4 {[%clk 0:00:16]} 62. Rf5 {[%clk 0:00:08]}  Kd4 {[%clk 0:00:16]} 63. Rf8 {[%clk 0:00:08]}  Ke5 {[%clk 0:00:16]} 64. h4 {[%clk 0:00:09]}  Ke6 {[%clk 0:00:16]} 65. h5 {[%clk 0:00:09]}  Ke7 {[%clk 0:00:17]} 66. Rf4 {[%clk 0:00:09]}  Rc5 {[%clk 0:00:15]} 67. Kg4 {[%clk 0:00:09]}  Rc1 {[%clk 0:00:14]} 68. h6 {[%clk 0:00:07]}  Rg1+ {[%clk 0:00:14]} 69. Kf5 {[%clk 0:00:07]}  Rh1 {[%clk 0:00:14]} 70. Kg6 {[%clk 0:00:07]}  Rg1+ {[%clk 0:00:13]} 71. Kh7 {[%clk 0:00:07]}  Rh1 {[%clk 0:00:13]} 72. Kg7 {[%clk 0:00:06]}  Rg1+ {[%clk 0:00:12]} 73. Kh8 {[%clk 0:00:06]}  Rh1 {[%clk 0:00:10]} 74. h7 {[%clk 0:00:06]}  Rh6 {[%clk 0:00:10]} 75. Rg4 {[%clk 0:00:05]}  Rh5 {[%clk 0:00:10]} 76. Rg7+ {[%clk 0:00:04]}  Kf6 {[%clk 0:00:10]} 77. Rg8 {[%clk 0:00:04]}  Kf5 {[%clk 0:00:08]} 78. Rf8+ {[%clk 0:00:04]}  Kg6 {[%clk 0:00:08]} 79. Kg8 {[%clk 0:00:03]}  Rxh7 {[%clk 0:00:08]} 80. Ra8 {[%clk 0:00:01]}  Rg7+ {[%clk 0:00:08]} 81. Kf8 {[%clk 0:00:01]}  Rf7+ {[%clk 0:00:09]} 82. Ke8 {[%clk 0:00:01]}  Rxf3 {[%clk 0:00:09]} 83. Ra6+ {[%clk 0:00:00]}  Rf6 {[%clk 0:00:09]} 0-1

[Event "December 19 Late 2023"]
[Site "https://www.chess.com"]
[Date "2023.12.19"]
[Round "4"]
[White "Nasybullina, Alfia"]
[Black "Stead, Kerry"]
[Result "0-1"]
[Board "170"]
[TimeControl "180+1"]
[WhiteFideId "4132416"]
[BlackFideId "3202577"]
[WhiteElo "1920"]
[BlackElo "1997"]
[WhiteTeam "KAZ"]
[BlackTeam "AUS"]
[WhiteClock "0:01:36"]
[BlackClock "0:00:36"]

1. d4 {[%clk 0:02:56]}  c5 {[%clk 0:02:57]} 2. d5 {[%clk 0:02:56]}  f5 {[%clk 0:02:55]} 3. Nf3 {[%clk 0:02:56]}  g6 {[%clk 0:02:54]} 4. Nc3 {[%clk 0:02:55]}  Bg7 {[%clk 0:02:54]} 5. Bf4 {[%clk 0:02:55]}  d6 {[%clk 0:02:53]} 6. e3 {[%clk 0:02:55]}  Bxc3+ {[%clk 0:02:52]} 7. bxc3 {[%clk 0:02:55]}  Qa5 {[%clk 0:02:53]} 8. Qd2 {[%clk 0:02:55]}  Nd7 {[%clk 0:02:52]} 9. Be2 {[%clk 0:02:55]}  b5 {[%clk 0:02:51]} 10. O-O {[%clk 0:02:55]}  c4 {[%clk 0:02:49]} 11. Nd4 {[%clk 0:02:54]}  Nc5 {[%clk 0:02:46]} 12. Nc6 {[%clk 0:02:53]}  Qc7 {[%clk 0:02:44]} 13. Qd4 {[%clk 0:02:48]}  Nf6 {[%clk 0:02:43]} 14. Bg5 {[%clk 0:02:48]}  O-O {[%clk 0:02:40]} 15. f3 {[%clk 0:02:48]}  Bb7 {[%clk 0:02:25]} 16. e4 {[%clk 0:02:48]}  fxe4 {[%clk 0:02:16]} 17. fxe4 {[%clk 0:02:44]}  Ncxe4 {[%clk 0:02:11]} 18. Bf3 {[%clk 0:02:33]}  Nxg5 {[%clk 0:02:01]} 19. Rae1 {[%clk 0:02:27]}  Nxf3+ {[%clk 0:01:59]} 20. Rxf3 {[%clk 0:02:26]}  Rae8 {[%clk 0:01:52]} 21. Qxa7 {[%clk 0:02:21]}  Nxd5 {[%clk 0:01:43]} 22. Rxf8+ {[%clk 0:02:19]}  Kxf8 {[%clk 0:01:40]} 23. Na5 {[%clk 0:02:13]}  Bc8 {[%clk 0:01:27]} 24. Qxc7 {[%clk 0:02:08]}  Nxc7 {[%clk 0:01:26]} 25. Nc6 {[%clk 0:02:08]}  e5 {[%clk 0:01:24]} 26. Ra1 {[%clk 0:02:02]}  Bb7 {[%clk 0:01:22]} 27. Na5 {[%clk 0:02:01]}  Be4 {[%clk 0:01:20]} 28. a4 {[%clk 0:02:00]}  Ra8 {[%clk 0:01:16]} 29. axb5 {[%clk 0:02:00]}  Nxb5 {[%clk 0:01:16]} 30. Re1 {[%clk 0:02:00]}  Bxc2 {[%clk 0:01:14]} 31. Nxc4 {[%clk 0:01:59]}  Bd3 {[%clk 0:01:03]} 32. Nb6 {[%clk 0:01:53]}  Ra2 {[%clk 0:01:01]} 33. c4 {[%clk 0:01:53]}  Nd4 {[%clk 0:00:59]} 34. Rd1 {[%clk 0:01:52]}  Be4 {[%clk 0:00:58]} 35. Nc8 {[%clk 0:01:48]}  Rxg2+ {[%clk 0:00:51]} 36. Kf1 {[%clk 0:01:48]}  Rxh2 {[%clk 0:00:47]} 37. Nxd6 {[%clk 0:01:48]}  Nc2 {[%clk 0:00:44]} 38. Rc1 {[%clk 0:01:40]}  Ne3+ {[%clk 0:00:41]} 39. Ke1 {[%clk 0:01:38]}  Bd3 {[%clk 0:00:38]} 40. c5 {[%clk 0:01:36]}  Re2# {[%clk 0:00:36]} 0-1